fUSD/lending_fUSD_20241220
["ID","MTS","AMOUNT","RATE_DAILY","PERIOD"]
[346113632,1734709838117,-500.0,0.00022637,4]
[346113634,1734709838127,-294.55992982,0.00022637,4]
[346113636,1734709838136,-179.4272641,0.00022637,4]
[346113638,1734709838147,-500.0,0.00022637,4]
[346113640,1734709838156,-500.0,0.00022637,4]
[346113642,1734709838166,-498.89,0.00022637,4]
[346113643,1734709838175,-500.0,0.00022637,4]
[346113644,1734709838185,-500.0,0.00022637,4]
[346113645,1734709838195,-746.93,0.00022637,4]
[346113646,1734709838205,-500.0,0.00022637,4]
[346113647,1734709838215,-500.0,0.00022637,4]
[346113648,1734709838224,-727.58,0.00022637,4]
[346113649,1734709838234,-500.0,0.00022637,4]
[346113650,1734709838246,-575.244449,0.00022637,4]
[346113651,1734709838256,-1272.69,0.00022637,4]
[346113652,1734709838266,-177.18189747,0.00022637,2]
[346113653,1734709838276,-500.0,0.00022637,4]
[346113654,1734709838290,-836.44,0.00022637,4]
[346113655,1734709838300,-1024.0,0.00022732,2]
[346113656,1734709838310,-591.25,0.00022736,4]
[346113657,1734709838321,-520.38,0.00022736,4]
[346113658,1734709838331,-500.0,0.00022736,4]
[346113659,1734709838341,-500.0,0.00022737,4]
[346113660,1734709838351,-500.0,0.00022737,4]
[346113661,1734709838361,-500.0,0.00022737,4]
[346113662,1734709838371,-500.0,0.00022737,4]
[346113663,1734709838381,-500.0,0.00022737,4]
[346113664,1734709838391,-500.0,0.00022737,4]
[346113665,1734709838401,-509.47,0.00022737,4]
[346113666,1734709838411,-500.0,0.00022737,4]
[346113667,1734709838421,-500.0,0.00022737,4]
[346113668,1734709838431,-500.0,0.00022737,4]
[346113669,1734709838441,-500.0,0.00022737,4]
[346113670,1734709838451,-500.0,0.00022737,4]
[346113671,1734709838460,-500.0,0.00022737,4]
[346113672,1734709838470,-500.0,0.00022737,4]
[346113673,1734709838480,-500.0,0.00022737,4]
[346113674,1734709838490,-500.0,0.00022737,4]
[346113675,1734709838502,-500.0,0.00022737,4]
[346113676,1734709838512,-500.0,0.00022737,4]
[346113677,1734709838522,-500.0,0.00022737,4]
[346113678,1734709838533,-500.0,0.00022737,4]
[346113679,1734709838542,-500.0,0.00022737,4]
[346113680,1734709838552,-500.0,0.00022737,4]
[346113681,1734709838562,-500.0,0.00022737,4]
[346113682,1734709838572,-563.41,0.00022737,4]
[346113683,1734709838583,-1196.88,0.00022737,4]
[346113684,1734709838594,-610.66,0.00022737,4]
[346113685,1734709838607,-636.72,0.00022737,4]
[346113686,1734709838616,-413.38768913,0.00022737,4]
[346113687,1734709838626,-882.55,0.00022737,4]
[346113688,1734709838636,-500.0,0.00022737,4]
[346113689,1734709838647,-285.35104561,0.00022737,4]
[346113690,1734709838657,-500.0,0.00022737,4]
[346113691,1734709838667,-500.0,0.00022737,4]
[346113692,1734709838677,-500.0,0.00022737,4]
[346113694,1734709838687,-500.0,0.00022737,4]
[346113695,1734709838697,-536.56,0.00022737,4]
[346113696,1734709838706,-500.0,0.00022737,4]
[346113697,1734709838716,-500.0,0.00022737,4]
[346113698,1734709838725,-562.16,0.00022737,4]
[346113699,1734709838735,-567.24,0.00022737,4]
[346113700,1734709838747,-500.0,0.00022737,4]
[346113701,1734709838761,-2747.37,0.00022737,4]
[346113702,1734709838770,-500.0,0.00022737,4]
[346113703,1734709838780,-1116.27,0.00022737,4]
[346113704,1734709838791,-500.0,0.00022737,4]
[346113705,1734709838800,-500.0,0.00022737,4]
[346113706,1734709838810,-995.89,0.00022737,4]
[346113707,1734709838820,-500.0,0.00022737,4]
[346113709,1734709838831,-500.0,0.00022737,4]
[346113711,1734709838841,-500.0,0.00022737,4]
[346113713,1734709838851,-500.0,0.00022737,4]
[346113715,1734709838860,-500.0,0.00022737,4]
[346113716,1734709838870,-500.0,0.00022737,4]
[346113717,1734709838881,-500.0,0.00022737,4]
[346113718,1734709838890,-636.08,0.00022737,4]
[346113719,1734709838900,-500.0,0.00022737,4]
[346113720,1734709838910,-500.0,0.00022737,4]
[346113721,1734709838919,-500.0,0.00022737,4]
[346113722,1734709838929,-500.0,0.00022737,4]
[346113723,1734709838938,-990.67420721,0.00022737,4]
[346113724,1734709838948,-500.0,0.00022737,4]
[346113725,1734709838958,-500.0,0.00022737,4]
[346113726,1734709838968,-500.0,0.00022737,4]
[346113727,1734709838977,-500.0,0.00022737,4]
[346113728,1734709838987,-500.0,0.00022737,4]
[346113729,1734709838999,-531.66,0.00022737,4]
[346113731,1734709839009,-500.0,0.00022737,4]
[346113733,1734709839019,-500.0,0.00022737,4]
[346113735,1734709839028,-500.0,0.00022737,4]
[346113737,1734709839038,-500.0,0.00022737,4]
[346113739,1734709839050,-685.29,0.00022737,4]
[346113741,1734709839061,-500.0,0.00022737,4]
[346113743,1734709839071,-500.0,0.00022737,4]
[346113745,1734709839080,-618.48,0.00022737,4]
[346113747,1734709839091,-1205.4,0.00022737,4]
[346113749,1734709839100,-808.43,0.00022737,4]
[346113751,1734709839110,-500.0,0.00022738,4]
[346113753,1734709839120,-500.0,0.00022738,4]
[346113755,1734709839131,-508.9232023,0.00022738,4]
[346113757,1734709839140,-500.0,0.00022738,4]
[346113759,1734709839150,-500.0,0.00022738,4]
[346113761,1734709839160,-915.44,0.00022738,4]
[346113763,1734709839170,-500.0,0.00022738,4]
[346113765,1734709839179,-649.57,0.00022738,4]
[346113768,1734709839189,-551.89,0.00022738,4]
[346113770,1734709839199,-500.0,0.00022738,4]
[346113772,1734709839209,-562.77,0.00022738,4]
[346113774,1734709839219,-549.41,0.00022738,4]
[346113776,1734709839229,-500.0,0.00022738,4]
[346113778,1734709839241,-695.7,0.00022738,4]
[346113780,1734709839270,-500.0,0.00022738,4]
[346113782,1734709839280,-3328.97,0.00022738,4]
[346113784,1734709839289,-500.0,0.00022738,4]
[346113785,1734709839299,-500.0,0.00022738,4]
[346113786,1734709839309,-500.0,0.00022738,4]
[346113787,1734709839319,-500.0,0.00022738,4]
[346113788,1734709839329,-500.0,0.00022738,4]
[346113789,1734709839339,-276.59844947,0.00022738,4]
[346113790,1734709839349,-768.71,0.00022738,4]
[346113791,1734709839360,-581.43,0.00022738,4]
[346113792,1734709839370,-500.0,0.00022739,4]
[346113793,1734709839380,-500.0,0.00022739,4]
[346113794,1734709839390,-500.0,0.00022739,4]
[346113795,1734709839400,-500.0,0.00022739,4]
[346113796,1734709839410,-500.0,0.00022739,4]
[346113797,1734709839420,-500.0,0.00022739,4]
[346113798,1734709839431,-500.0,0.00022739,4]
[346113799,1734709839441,-500.0,0.00022739,4]
[346113800,1734709839451,-500.0,0.00022739,4]
[346113801,1734709839464,-500.0,0.00022739,4]
[346113802,1734709839475,-596.84,0.00022739,4]
[346113803,1734709839485,-500.0,0.00022739,4]
[346113804,1734709839496,-500.0,0.00022739,4]
[346113805,1734709839506,-500.0,0.00022739,4]
[346113806,1734709839515,-500.0,0.00022739,4]
[346113807,1734709839525,-500.0,0.00022739,4]
[346113808,1734709839534,-500.0,0.00022739,4]
[346113809,1734709839545,-209.0,0.0002277,2]
[346113810,1734709839554,-1060.81,0.00022771,2]
[346113811,1734709839565,-177.18189744,0.00022777,2]
[346113812,1734709839575,-532.708,0.000228,2]
[346113813,1734709839585,-150.0,0.000228,4]
[346113814,1734709839596,-937.46646434,0.00022837,2]
[346113815,1734709839606,-154.608058,0.00022877,4]
[346113816,1734709839617,-500.0,0.00022877,4]
[346113817,1734709839627,-500.0,0.00022877,4]
[346113818,1734709839637,-500.0,0.00022877,4]
[346113819,1734709839647,-156.913729,0.00022877,4]
[346113820,1734709839658,-500.0,0.00022877,4]
[346113821,1734709839669,-865.8,0.00022877,4]
[346113822,1734709839680,-500.0,0.00022877,4]
[346113823,1734709839691,-3061.98,0.00022877,4]
[346113824,1734709839702,-1572.9,0.00022877,4]
[346113825,1734709839712,-548.23,0.00022877,4]
[346113826,1734709839722,-691.04,0.00022877,4]
[346113827,1734709839733,-578.07857853,0.00022877,4]
[346113828,1734709839746,-500.0,0.00022877,4]
[346113829,1734709839759,-3289.63,0.00022887,2]
[346113830,1734709839769,-175.658,0.00022887,2]
[346113831,1734709839779,-300.02998398,0.000229,2]
[346113832,1734709839791,-500.0,0.0002291,4]
[346113833,1734709839801,-500.0,0.0002291,4]
[346113834,1734709839811,-500.0,0.0002291,4]
[346113835,1734709839822,-632.94,0.0002291,4]
[346113836,1734709839831,-500.0,0.0002291,4]
[346113837,1734709839841,-500.0,0.0002291,4]
[346113838,1734709839850,-500.0,0.0002291,4]
[346113839,1734709839861,-500.0,0.0002291,4]
[346113840,1734709839871,-500.0,0.0002291,4]
[346113841,1734709839882,-3094.12,0.0002291,4]
[346113842,1734709839894,-500.0,0.0002291,4]
[346113843,1734709839904,-1158.38,0.0002291,4]
[346113844,1734709839914,-500.0,0.0002291,4]
[346113845,1734709839923,-540.82,0.0002291,4]
[346113846,1734709839934,-500.0,0.0002291,4]
[346113847,1734709839944,-500.0,0.00022911,4]
[346113848,1734709839955,-500.0,0.00022911,4]
[346113849,1734709839967,-500.0,0.00022911,4]
[346113850,1734709839981,-500.0,0.00022911,4]
[346113851,1734709839991,-500.0,0.00022911,4]
[346113852,1734709840003,-500.0,0.00022911,4]
[346113853,1734709840013,-746.93,0.00022911,4]
[346113854,1734709840022,-500.0,0.00022911,4]
[346113855,1734709840031,-500.0,0.00022911,4]
[346113856,1734709840041,-727.58,0.00022911,4]
[346113857,1734709840051,-500.0,0.00022911,4]
[346113858,1734709840062,-1272.69,0.00022911,4]
[346113860,1734709840071,-500.0,0.00022911,4]
[346113861,1734709840082,-836.44,0.00022911,4]
[346113862,1734709840092,-177.18189744,0.00022918,2]
[346113863,1734709840103,-386.45172954,0.00022999,2]
[346113864,1734709840113,-500.0,0.00022999,2]
[346113865,1734709840123,-500.0,0.00022999,2]
[346113866,1734709840133,-438.37368337,0.00022999,2]
[346113867,1734709840143,-700.0,0.00023,2]
[346113868,1734709840153,-75771.49969692,0.00023,2]
[346113869,1734709840537,-1228.47,0.00023,2]
[346113870,1734709840549,-6865.75023366,0.00023,2]
[346113871,1734709840927,-150.0,0.00018965,2]
[346113872,1734709840937,-150.0,0.00021965,2]
[346113873,1734709840948,-423.374594,0.00022603,4]
[346113874,1734709840964,-76.625406,0.00022603,4]
[346113877,1734709840975,-500.0,0.00022877,4]
[346113878,1734709840985,-69364.54687681,0.00023,2]
[346113879,1734709841000,-67126.85727179,0.00023,2]
[346113880,1734709841011,-5581.250025,0.00023,2]
[346113881,1734709841023,-9990.0,0.00023,2]
[346113882,1734709841043,-9738.6384,0.00023,2]
[346113883,1734709841123,-500.0,0.0002219,4]
[346113884,1734709841133,-500.0,0.00022464,4]
[346113885,1734709841143,-500.0,0.00022738,4]
[346113886,1734709841153,-965.47417115,0.00023,2]
[346113908,1734709843588,-1221.00324979,0.00023,2]
[346113909,1734709843601,-865.77127835,0.00023,2]
[346113910,1734709843614,-1759.35999998,0.00023,2]
[346113911,1734709843626,-2124.4700145,0.00023,2]
[346113912,1734709843638,-2429.625,0.00023,2]
[346113913,1734709843651,-2422.0,0.00023,2]
[346113919,1734709846260,-150.0,0.00018965,2]
[346113920,1734709846270,-500.0,0.00022462,4]
[346113921,1734709846282,-610.19,0.00022463,4]
[346113922,1734709846292,-500.0,0.00022736,4]
[346113923,1734709846302,-610.19,0.00022737,4]
[346113924,1734709846312,-11056.6441,0.00023,2]
[346113925,1734709846414,-1526.43607782,0.00023,2]
[346113926,1734709846426,-4020.00006389,0.00023,2]
[346113927,1734709846437,-2291.851,0.00023,2]
[346113928,1734709846449,-1056.34317,0.00023,2]
[346113929,1734709846460,-4203.33643405,0.00023,2]
[346113930,1734709846472,-247096.95177309,0.00023,2]
[346113931,1734709846482,-1907.36356597,0.00023,2]
[346113932,1734709846492,-200.0,0.00023,2]
[346113933,1734709846503,-500.0,0.0002301,4]
[346113934,1734709846512,-345.46221722,0.0002301,4]
[346113935,1734709846521,-500.0,0.00023011,4]
[346113936,1734709846530,-500.0,0.00023011,4]
[346113937,1734709846540,-500.0,0.00023011,4]
[346113938,1734709846549,-509.47,0.00023011,4]
[346113939,1734709846559,-500.0,0.00023011,4]
[346113940,1734709846569,-500.0,0.00023011,4]
[346113941,1734709846579,-500.0,0.00023011,4]
[346113942,1734709846589,-500.0,0.00023011,4]
[346113943,1734709846598,-500.0,0.00023011,4]
[346113944,1734709846608,-500.0,0.00023011,4]
[346113945,1734709846617,-500.0,0.00023011,4]
[346113946,1734709846627,-500.0,0.00023011,4]
[346113949,1734709846641,-500.0,0.00023011,4]
[346113951,1734709846651,-500.0,0.00023011,4]
[346113952,1734709846660,-500.0,0.00023011,4]
[346113953,1734709846669,-500.0,0.00023011,4]
[346113954,1734709846679,-500.0,0.00023011,4]
[346113955,1734709846688,-448.33175377,0.00023011,4]
[346113956,1734709846697,-500.0,0.00023011,4]
[346113957,1734709846707,-563.41,0.00023011,4]
[346113958,1734709846717,-610.66,0.00023011,4]
[346113959,1734709846726,-882.55,0.00023011,4]
[346113960,1734709846735,-500.0,0.00023011,4]
[346113961,1734709846745,-500.0,0.00023011,4]
[346113962,1734709846758,-500.0,0.00023011,4]
[346113964,1734709846771,-500.0,0.00023011,4]
[346113966,1734709846780,-536.56,0.00023011,4]
[346113968,1734709846791,-500.0,0.00023011,4]
[346113970,1734709846801,-500.0,0.00023011,4]
[346113972,1734709846811,-562.16,0.00023011,4]
[346113974,1734709846821,-567.24,0.00023011,4]
[346113976,1734709846830,-500.0,0.00023011,4]
[346113978,1734709846841,-2747.37,0.00023011,4]
[346113980,1734709846850,-500.0,0.00023011,4]
[346113983,1734709846861,-1116.27,0.00023011,4]
[346113985,1734709846871,-500.0,0.00023011,4]
[346113987,1734709846880,-500.0,0.00023011,4]
[346113989,1734709846891,-995.89,0.00023011,4]
[346113991,1734709846901,-500.0,0.00023011,4]
[346113993,1734709846913,-500.0,0.00023011,4]
[346113995,1734709846923,-500.0,0.00023011,4]
[346113997,1734709846932,-500.0,0.00023011,4]
[346113999,1734709846941,-500.0,0.00023011,4]
[346114001,1734709846951,-500.0,0.00023011,4]
[346114003,1734709846961,-500.0,0.00023011,4]
[346114005,1734709846970,-500.0,0.00023011,4]
[346114007,1734709846980,-563.45543064,0.00023011,4]
[346114009,1734709846990,-500.0,0.00023011,4]
[346114011,1734709847001,-500.0,0.00023011,4]
[346114013,1734709847011,-500.0,0.00023011,4]
[346114015,1734709847020,-500.0,0.00023011,4]
[346114016,1734709847030,-500.0,0.00023011,4]
[346114017,1734709847041,-531.66,0.00023011,4]
[346114019,1734709847052,-500.0,0.00023011,4]
[346114021,1734709847062,-500.0,0.00023011,4]
[346114023,1734709847071,-500.0,0.00023011,4]
[346114025,1734709847081,-500.0,0.00023011,4]
[346114026,1734709847091,-685.29,0.00023011,4]
[346114027,1734709847102,-500.0,0.00023011,4]
[346114028,1734709847112,-500.0,0.00023011,4]
[346114029,1734709847124,-618.48,0.00023011,4]
[346114030,1734709847133,-1205.4,0.00023011,4]
[346114031,1734709847143,-808.43,0.00023011,4]
[346114032,1734709847152,-610.19,0.00023011,4]
[346114033,1734709847162,-500.0,0.00023012,4]
[346114034,1734709847171,-500.0,0.00023012,4]
[346114035,1734709847181,-500.0,0.00023012,4]
[346114036,1734709847190,-500.0,0.00023012,4]
[346114037,1734709847200,-915.44,0.00023012,4]
[346114038,1734709847209,-500.0,0.00023012,4]
[346114039,1734709847220,-649.57,0.00023012,4]
[346114040,1734709847229,-551.89,0.00023012,4]
[346114041,1734709847240,-500.0,0.00023012,4]
[346114042,1734709847249,-562.77,0.00023012,4]
[346114043,1734709847261,-549.41,0.00023012,4]
[346114044,1734709847272,-500.0,0.00023012,4]
[346114045,1734709847282,-695.7,0.00023012,4]
[346114046,1734709847291,-500.0,0.00023012,4]
[346114047,1734709847300,-3328.97,0.00023012,4]
[346114048,1734709847310,-500.0,0.00023012,4]
[346114049,1734709847319,-500.0,0.00023012,4]
[346114050,1734709847329,-500.0,0.00023012,4]
[346114051,1734709847338,-500.0,0.00023012,4]
[346114052,1734709847348,-500.0,0.00023012,4]
[346114053,1734709847358,-768.71,0.00023012,4]
[346114054,1734709847367,-581.43,0.00023012,4]
[346114055,1734709847376,-500.0,0.00023012,4]
[346114056,1734709847386,-500.0,0.00023013,4]
[346114057,1734709847395,-500.0,0.00023013,4]
[346114058,1734709847405,-500.0,0.00023013,4]
[346114059,1734709847414,-500.0,0.00023013,4]
[346114060,1734709847424,-500.0,0.00023013,4]
[346114061,1734709847433,-500.0,0.00023013,4]
[346114062,1734709847443,-500.0,0.00023013,4]
[346114063,1734709847452,-500.0,0.00023013,4]
[346114064,1734709847462,-500.0,0.00023013,4]
[346114065,1734709847471,-500.0,0.00023013,4]
[346114066,1734709847481,-198.54112647,0.00023013,4]
[346114067,1734709847490,-500.0,0.00023013,4]
[346114068,1734709847499,-500.0,0.00023013,4]
[346114069,1734709847549,-500.0,0.00023013,4]
[346114070,1734709847558,-500.0,0.00023013,4]
[346114071,1734709847568,-344.0,0.00023014,2]
[346114072,1734709847577,-937.46646434,0.00023049,2]
[346114073,1734709847586,-177.18189744,0.00023058,2]
[346114074,1734709847596,-500.0,0.00023151,4]
[346114075,1734709847605,-500.0,0.00023151,4]
[346114076,1734709847615,-156.913729,0.00023151,4]
[346114077,1734709847625,-500.0,0.00023151,4]
[346114078,1734709847635,-865.8,0.00023151,4]
[346114079,1734709847644,-500.0,0.00023151,4]
[346114080,1734709847654,-3061.98,0.00023151,4]
[346114081,1734709847663,-1572.9,0.00023151,4]
[346114082,1734709847674,-548.23,0.00023151,4]
[346114083,1734709847683,-691.04,0.00023151,4]
[346114084,1734709847692,-500.0,0.00023151,4]
[346114085,1734709847702,-500.0,0.00023151,4]
[346114086,1734709847712,-500.0,0.00023184,4]
[346114087,1734709847721,-632.94,0.00023184,4]
[346114088,1734709847732,-500.0,0.00023184,4]
[346114089,1734709847741,-500.0,0.00023184,4]
[346114090,1734709847752,-500.0,0.00023184,4]
[346114091,1734709847762,-500.0,0.00023184,4]
[346114092,1734709847772,-500.0,0.00023184,4]
[346114093,1734709847781,-3094.12,0.00023184,4]
[346114094,1734709847791,-500.0,0.00023184,4]
[346114095,1734709847801,-1158.38,0.00023184,4]
[346114096,1734709847810,-500.0,0.00023184,4]
[346114097,1734709847820,-500.0,0.00023184,4]
[346114098,1734709847830,-500.0,0.00023185,4]
[346114099,1734709847841,-500.0,0.00023185,4]
[346114100,1734709847850,-500.0,0.00023185,4]
[346114101,1734709847860,-500.0,0.00023185,4]
[346114102,1734709847870,-500.0,0.00023185,4]
[346114103,1734709847879,-500.0,0.00023185,4]
[346114104,1734709847889,-746.93,0.00023185,4]
[346114105,1734709847898,-500.0,0.00023185,4]
[346114106,1734709847908,-500.0,0.00023185,4]
[346114107,1734709847917,-727.58,0.00023185,4]
[346114108,1734709847927,-624.01603911,0.00023185,4]
[346114109,1734709847936,-1272.69,0.00023185,4]
[346114110,1734709847946,-500.0,0.00023185,4]
[346114111,1734709847955,-836.44,0.00023185,4]
[346114112,1734709847967,-177.18189744,0.00023198,2]
[346114113,1734709847977,-209.0,0.0002322,2]
[346114114,1734709847988,-204.0,0.0002322,2]
[346114115,1734709847997,-226.28,0.00023232,2]
[346114116,1734709848008,-600.0,0.00023256,2]
[346114117,1734709848017,-937.46646434,0.00023262,2]
[346114118,1734709848027,-500.0,0.00023284,4]
[346114119,1734709848037,-500.0,0.00023285,4]
[346114120,1734709848046,-500.0,0.00023285,4]
[346114121,1734709848056,-500.0,0.00023285,4]
[346114122,1734709848066,-509.47,0.00023285,4]
[346114123,1734709848077,-500.0,0.00023285,4]
[346114124,1734709848087,-500.0,0.00023285,4]
[346114125,1734709848096,-500.0,0.00023285,4]
[346114126,1734709848106,-500.0,0.00023285,4]
[346114127,1734709848116,-500.0,0.00023285,4]
[346114128,1734709848126,-500.0,0.00023285,4]
[346114129,1734709848136,-500.0,0.00023285,4]
[346114130,1734709848146,-500.0,0.00023285,4]
[346114131,1734709848155,-500.0,0.00023285,4]
[346114132,1734709848165,-500.0,0.00023285,4]
[346114133,1734709848175,-500.0,0.00023285,4]
[346114134,1734709848185,-500.0,0.00023285,4]
[346114135,1734709848195,-500.0,0.00023285,4]
[346114136,1734709848205,-500.0,0.00023285,4]
[346114137,1734709848215,-563.41,0.00023285,4]
[346114138,1734709848224,-610.66,0.00023285,4]
[346114139,1734709848234,-882.55,0.00023285,4]
[346114140,1734709848245,-500.0,0.00023285,4]
[346114141,1734709848255,-500.0,0.00023285,4]
[346114142,1734709848264,-500.0,0.00023285,4]
[346114143,1734709848274,-500.0,0.00023285,4]
[346114144,1734709848284,-536.56,0.00023285,4]
[346114145,1734709848293,-500.0,0.00023285,4]
[346114146,1734709848303,-500.0,0.00023285,4]
[346114147,1734709848313,-562.16,0.00023285,4]
[346114148,1734709848323,-567.24,0.00023285,4]
[346114149,1734709848333,-500.0,0.00023285,4]
[346114150,1734709848343,-2747.37,0.00023285,4]
[346114151,1734709848353,-500.0,0.00023285,4]
[346114152,1734709848362,-1116.27,0.00023285,4]
[346114153,1734709848372,-500.0,0.00023285,4]
[346114154,1734709848382,-528.32552065,0.00023285,4]
[346114155,1734709848391,-995.89,0.00023285,4]
[346114156,1734709848401,-500.0,0.00023285,4]
[346114157,1734709848411,-500.0,0.00023285,4]
[346114158,1734709848421,-599.86604779,0.00023285,4]
[346114159,1734709848431,-500.0,0.00023285,4]
[346114160,1734709848440,-500.0,0.00023285,4]
[346114161,1734709848450,-500.0,0.00023285,4]
[346114162,1734709848459,-500.0,0.00023285,4]
[346114163,1734709848469,-500.0,0.00023285,4]
[346114164,1734709848479,-500.0,0.00023285,4]
[346114165,1734709848488,-500.0,0.00023285,4]
[346114166,1734709848498,-500.0,0.00023285,4]
[346114167,1734709848510,-294.57537284,0.00023285,4]
[346114168,1734709848519,-500.0,0.00023285,4]
[346114169,1734709848529,-531.66,0.00023285,4]
[346114170,1734709848539,-153.03623289,0.00023285,4]
[346114171,1734709848548,-500.0,0.00023285,4]
[346114172,1734709848558,-500.0,0.00023285,4]
[346114173,1734709848568,-500.0,0.00023285,4]
[346114174,1734709848578,-685.29,0.00023285,4]
[346114175,1734709848588,-368.32905635,0.00023285,4]
[346114176,1734709848598,-500.0,0.00023285,4]
[346114177,1734709848607,-618.48,0.00023285,4]
[346114178,1734709848617,-1205.4,0.00023285,4]
[346114179,1734709848626,-808.43,0.00023285,4]
[346114180,1734709848635,-610.19,0.00023285,4]
[346114181,1734709848645,-500.0,0.00023286,4]
[346114182,1734709848655,-500.0,0.00023286,4]
[346114183,1734709848665,-500.0,0.00023286,4]
[346114184,1734709848675,-500.0,0.00023286,4]
[346114185,1734709848684,-915.44,0.00023286,4]
[346114186,1734709848694,-500.0,0.00023286,4]
[346114187,1734709848704,-649.57,0.00023286,4]
[346114188,1734709848714,-551.89,0.00023286,4]
[346114189,1734709848723,-500.0,0.00023286,4]
[346114190,1734709848733,-562.77,0.00023286,4]
[346114191,1734709848742,-549.41,0.00023286,4]
[346114192,1734709848753,-500.0,0.00023286,4]
[346114193,1734709848764,-695.7,0.00023286,4]
[346114194,1734709848773,-500.0,0.00023286,4]
[346114195,1734709848783,-3328.97,0.00023286,4]
[346114196,1734709848793,-500.0,0.00023286,4]
[346114197,1734709848802,-500.0,0.00023286,4]
[346114198,1734709848812,-500.0,0.00023286,4]
[346114199,1734709848821,-500.0,0.00023286,4]
[346114200,1734709848831,-500.0,0.00023286,4]
[346114201,1734709848840,-768.71,0.00023286,4]
[346114202,1734709848849,-581.43,0.00023286,4]
[346114203,1734709848860,-500.0,0.00023286,4]
[346114204,1734709848869,-500.0,0.00023287,4]
[346114205,1734709848878,-500.0,0.00023287,4]
[346114206,1734709848888,-500.0,0.00023287,4]
[346114207,1734709848897,-1000.0,0.00023287,5]
[346114208,1734709848906,-853.11430851,0.00023287,5]
[346114209,1734709848915,-500.0,0.00023287,4]
[346114210,1734709848925,-500.0,0.00023287,4]
[346114211,1734709848935,-381.396956,0.00023287,4]
[346114212,1734709848944,-298.30050227,0.00023287,4]
[346114213,1734709848954,-500.0,0.00023287,4]
[346114214,1734709848964,-500.0,0.00023287,4]
[346114215,1734709848973,-500.0,0.00023287,4]
[346114216,1734709848983,-500.0,0.00023287,4]
[346114217,1734709848993,-500.0,0.00023287,4]
[346114218,1734709849003,-500.0,0.00023287,4]
[346114219,1734709849013,-500.0,0.00023287,4]
[346114220,1734709849023,-177.18189744,0.00023339,2]
[346114221,1734709849033,-150.0,0.0002337,2]
[346114222,1734709849042,-300.02998398,0.000234,2]
[346114223,1734709849052,-500.0,0.00023425,4]
[346114224,1734709849061,-500.0,0.00023425,4]
[346114225,1734709849072,-500.0,0.00023425,4]
[346114226,1734709849081,-865.8,0.00023425,4]
[346114227,1734709849091,-500.0,0.00023425,4]
[346114228,1734709849101,-3061.98,0.00023425,4]
[346114229,1734709849110,-1572.9,0.00023425,4]
[346114230,1734709849120,-548.23,0.00023425,4]
[346114231,1734709849130,-691.04,0.00023425,4]
[346114232,1734709849141,-500.0,0.00023425,4]